Cogmind - Beta 13 @@@ ROGUE MODE // 2024.05.12 @ 18:15:08 Player: Jason Result: Smashed by cave-in Performance ------------- Evolutions (0) 0 Regions Visited (1) 200 Robots Destroyed (13) 65 Value Destroyed (283) 283 Prototype IDs (0) 0 Alien Tech Used (0) 0 Bonus (0) 0 TOTAL SCORE: 548 Bonus ------- None Cogmind --------- Core Integrity 0/250 Matter 275/300 Energy 160/160 System Corruption 2% Temperature Cool (0) Movement Walking (120) Location -10/Materials Parts ------- > --- POWER (1) -------- Light Nuclear Core > --- PROPULSION (2) --- Aluminum Leg Aluminum Leg > --- UTILITY (2) ------ Small Storage Unit > --- WEAPON (2) ------- Light Assault Rifle Hammer > --- INVENTORY (8) ---- Light Ion Engine Aluminum Leg Aluminum Leg Wheel Structural Scanner Light Armor Plating Grenade Launcher Mining Laser Peak State ------------ > --- POWER ------------ Light Nuclear Core > --- PROPULSION ------- Aluminum Leg Aluminum Leg > --- UTILITY ---------- Small Storage Unit Structural Scanner > --- WEAPON ----------- Hammer Hammer > --- INVENTORY -------- Light Ion Engine Aluminum Leg Aluminum Leg Wheel Medium Matter Pod Tractor Beam Grenade Launcher Mining Laser [Rating: 9] Favorites ----------- Power Light Nuclear Core Engine Light Ion Engine Power Core Light Nuclear Core Propulsion Aluminum Leg Leg Aluminum Leg Utility Small Storage Unit Device Structural Scanner Storage Small Storage Unit Weapon Hammer Ballistic Gun Light Assault Rifle Impact Weapon Hammer Build | -11 -10 ------- Run | Yrd Mat Slots Evolved . | . . Power . | . . Propulsion . | . . Utility . | . . Weapon . | . . Parts Attached 16 | 7 9 Power 2 | 1 1 Engine 1 | 1 . Core 1 | . 1 Reactor . | . . Propulsion 5 | 2 3 Treads . | . . Leg 5 | 2 3 Wheel . | . . Hover . | . . Flight . | . . Utility 4 | 2 2 Device 3 | 1 2 Storage 1 | 1 . Processor . | . . Hackware . | . . Protection . | . . Artifact . | . . Weapon 5 | 2 3 Energy Gun . | . . Energy Cannon . | . . Ballistic Gun 3 | 2 1 Ballistic Cannon . | . . Launcher . | . . Special Weapon . | . . Impact Weapon 2 | . 2 Slashing Weapon . | . . Piercing Weapon . | . . Special Melee Weapon . | . . Unidentified Prototypes . | . . Parts Lost 7 | . 7 Power 1 | . 1 Propulsion 2 | . 2 Utility 2 | . 2 Weapon 2 | . 2 Highest Loss Streak 4 | . 4 To Critical Strikes . | . . Average Slot Usage (%) 86 | . 86 Engine 2 | . 2 Core 10 | . 10 Leg 23 | . 23 Device 8 | . 8 Storage 14 | . 14 Ballistic Gun 7 | . 7 Impact Weapon 19 | . 19 Naked Turns . | . . Heaviest Build 15 | 12 15 Greatest Support 20 | 20 20 Greatest Overweight (x) 3 | 1 3 Average Overweight (x) . | . . Largest Inventory Capacity 8 | 8 8 Average Capacity 7 | 7 8 Most Carried 8 | 5 8 Average Carried 6 | 2 7 Final Capacity 8 | 8 8 Final Carried 8 | 5 8 Class Distribution -------------------- 100% | Mutant Dominant Class ---------------- Mutant | -10/Materials Resources | -11 -10 ----------- Run | Yrd Mat Matter Collected 419 | 294 125 Remotely . | . . Salvage Created 559 | 120 439 Parts 22 | 8 14 Haulers Intercepted 1 | . 1 Recyclers Shooed 2 | 1 1 Parts Field Recycled . | . . Retrieved Matter . | . . Parts Self-Destructed . | . . Prevented . | . . Kills | -11 -10 ------- Run | Yrd Mat Combat Hostiles Destroyed 6 | . 6 Melee 1 | . 1 Guns 4 | . 4 Classes Destroyed 5 | 2 3 Builder 1 | . 1 Tunneler 3 | 2 1 Hauler 1 | . 1 Recycler 2 | 1 1 Grunt 6 | . 6 Best Kill Streak 3 | 3 3 Combat Bots Only 3 | . 3 Max Kills in Single Turn 1 | 1 1 Gunslinging . | . . Exploded . | . . Melee 1 | . 1 Uniques/NPCs Destroyed . | . . Combat | -11 -10 -------- Run | Yrd Mat Hostile Shots Fired 63 | . 63 Missed 11 | . 11 Damage Taken 940 | . 940 Core 284 | . 284 Absorbed by Shields . | . . Core Remaining (%) 100 | 100 . Volleys Fired 50 | 6 44 Largest 2 | 2 2 Hottest 40 | 40 40 Shots Fired 73 | 12 61 Gun 73 | 12 61 Cannon . | . . Launcher . | . . Special . | . . Kinetic 73 | 12 61 Thermal . | . . Explosive . | . . Electromagnetic . | . . Robot Hit Streak 9 | 3 9 Robot Miss Streak 2 | 2 2 Penetration Max . | . . Secondary Targets 2 | . 2 Max Gunslinging Chain 1 | . 1 Shots Hit Robots 60 | 7 53 Core Hits 20 | 4 16 Critical Kills . | . . Critical Parts Destroyed 3 | . 3 Critical Strikes 3 | . 3 Destroy 1 | . 1 Smash 2 | . 2 Melee Attacks 37 | . 37 Impact 37 | . 37 Slashing . | . . Piercing . | . . Sneak Attacks 5 | . 5 Combat Hostiles . | . . Follow-up Attacks 1 | . 1 Damage Inflicted 883 | 101 782 Guns 516 | 101 415 Cannons . | . . Explosions . | . . Melee 367 | . 367 Ramming . | . . Kinetic 516 | 101 415 Thermal . | . . Explosive . | . . Electromagnetic . | . . Impact 367 | . 367 Slashing . | . . Piercing . | . . Highest Corruption . | . . Average Corruption . | . . Corruption Purged . | . . Corruption Blocked . | . . Overload Shots . | . . Overflow Damage 172 | . 172 Projectiles . | . . Explosions . | . . Melee 172 | . 172 Knockbacks 3 | . 3 Impact 3 | . 3 Kinetic . | . . Secondary . | . . Self-Inflicted Damage . | . . Shots . | . . Rammed . | . . Targets Rammed . | . . Kicked . | . . Crushed . | . . Highest Temperature 34 | . 34 Average Temperature 11 | . 11 Received Heat Transfer 402 | . 402 Siege Activations . | . . Robots Corrupted . | . . Combat Hostiles . | . . Parts Fried 11 | . 11 Impact Corruptions 7 | . 7 Robots Melted . | . . Combat Hostiles . | . . Parts Melted . | . . Heat Transferred . | . . Parts Sabotaged . | . . Parts Stolen . | . . Parts Stripped . | . . Power Chain Reactions . | . . Alert | -11 -10 ------- Run | Yrd Mat Peak Influence 152 | 15 152 Initial 9 | . 9 Average 54 | 4 61 Maximum Alert Level . | . . Low Security (%) 100 | 100 100 Level 1 . | . . Level 2 . | . . Level 3 . | . . Level 4 . | . . Level 5 . | . . High Security . | . . Max Security . | . . Squads Dispatched 4 | . 4 Investigation 2 | . 2 Extermination . | . . Reinforcement 2 | . 2 Assault . | . . Garrison . | . . Intercept . | . . Searches Triggered . | . . Construction Impeded . | . . Haulers Reinforced . | . . Active Scanning Responses . | . . Cargo Convoy Interrupts . | . . Stealth | -11 -10 --------- Run | Yrd Mat Distress Signals 2 | . 2 Communications Jammed . | . . Distress Signals . | . . Times Spotted 15 | . 15 Peak Tracking Total 5 | . 5 Tactical Retreats . | . . Traps | -11 -10 ------- Run | Yrd Mat Traps Triggered 1 | . 1 Indirectly . | . . Trap Hack Attempts . | . . Triggered . | . . Disarmed . | . . Reprogrammed . | . . Reused . | . . Traps Extracted . | . . Installed . | . . Triggered . | . . Machines | -11 -10 ---------- Run | Yrd Mat Machines Disabled . | . . Max in Single Turn . | . . Machines Repaired . | . . Machines Dismantled . | . . Machines Sabotaged . | . . Overloaded Fab Kills . | . . Hacking | -11 -10 --------- Run | Yrd Mat Machines Accessed 4 | . 4 Terminals 3 | . 3 Fabricators . | . . Repair Stations . | . . Recycling Units 1 | . 1 Scanalyzers . | . . Garrison Access . | . . Total Hacks 16 | . 16 Successful 5 | . 5 Failed 11 | . 11 Catastrophic 3 | . 3 Database Lockouts . | . . Manual 8 | . 8 Terminals 12 | . 12 Fabricators . | . . Repair Stations . | . . Recycling Units 4 | . 4 Scanalyzers . | . . Garrison Access . | . . Terminal Hacks 2 | . 2 Part Schematic 2 | . 2 Fabricator Hacks . | . . Repair Station Hacks . | . . Recycling Unit Hacks 2 | . 2 Report Inventory 1 | . 1 Retrieve Components 1 | . 1 Scanalyzer . | . . Garrison Access Hacks . | . . Unauthorized Hacks 1 | . 1 Terminals 1 | . 1 Botnet 1 | . 1 Fabricators . | . . Repair Stations . | . . Recycling Units . | . . Scanalyzers . | . . Garrison Access . | . . Data Cores Recovered . | . . Used . | . . Hacking Detections 4 | . 4 Full Trace Events 1 | . 1 Feedback Events . | . . Feedback Blocked . | . . Robot Schematics Acquired . | . . Robots Built . | . . Authchips . | . . Time . | . . Total Robot Build Rating . | . . Part Schematics Acquired 1 | . 1 Parts Built . | . . Authchips . | . . Time . | . . Total Part Build Rating . | . . Parts Repaired . | . . Time . | . . Parts Recycled . | . . Recycled Matter . | . . Retrieved Matter . | . . Retrieved Components 8 | . 8 Parts Scanalyzed . | . . Part Schematics Acquired . | . . Parts Damaged . | . . Bothacking | -11 -10 ------------ Run | Yrd Mat Used RIF Installer . | . . Robots Hacked . | . . Non-combat . | . . Combat . | . . Robot Hacks Applied . | . . Relay Couplers Released . | . . Fabnet Peak Effective % . | . . Robots Rewired . | . . Allies Hacked . | . . Hacks Repelled . | . . Allies | -11 -10 -------- Run | Yrd Mat Total Allies . | . . Largest Group . | . . Highest-Rated Group . | . . Highest-Rated Ally . | . . Total Orders . | . . Ally Attacks . | . . Total Damage . | . . Kills . | . . Allies Corrupted . | . . Allies Melted . | . . Intel | -11 -10 ------- Run | Yrd Mat Robot Analysis Total . | . . Derelict Logs Recovered . | . . Drone Launches . | . . Drone Recoveries . | . . Exploration | -11 -10 ------------- Run | Yrd Mat Turns Passed 948 | 114 834 Spaces Moved 513 | 64 449 Core 53 | 7 46 Treads . | . . Legs 460 | 57 403 Wheels . | . . Hover . | . . Flight . | . . Fastest Speed 50 | 50 100 Average Speed 123 | 128 122 Slowest Speed 200 | 190 200 Overloaded Moves . | . . Propulsion Burnouts . | . . Robots Hopped . | . . Cave-ins Triggered 1 | . 1 Exploration Rate (%) 32 | 4 60 Regions Visited 1 Branch Regions . Pre-discovered Areas . | . . Known Exits Taken . | . . Unknown Exits Taken 1 | 1 . Scrap Searched . | . . Spaces Dug 16 | . 16 Terrain Destroyed 16 | . 16 Melee 16 | . 16 Projectile . | . . AOE . | . . Terrain Rammed . | . . Walls Destroyed . | . . Machines Disabled . | . . Actions | -11 -10 --------- Run | Yrd Mat Total 704 | 81 623 Wait 80 | . 80 Move 512 | 63 449 Hop . | . . Pick Up 10 | 5 5 Fast Attach 14 | 7 7 Attach . | . . Detach . | . . Swap 2 | . 2 Drop 4 | . 4 Fire 50 | 6 44 Melee 32 | . 32 Ram . | . . Kick . | . . Crush . | . . Escape Stasis . | . . Rewire . | . . Trap . | . . Miscellaneous . | . . Route ------- -11/Scrapyard -10/Materials (discovered 3 exits: [*Mat x2] / [*Min]) History --------- Turn | Location | Event 9 | -11/Scrapyard | Discovered new exit (range 16) 115 | -11/Scrapyard | Entered Materials 269 | -10/Materials | Lost 4 parts (1p2n1w) 315 | -10/Materials | Core integrity fell below 50% 320 | -10/Materials | Core integrity fell below 20% 327 | -10/Materials | Build established: Mutant 563 | -10/Materials | Discovered new exit (range 7) 700 | -10/Materials | Discovered new exit (range 5) 757 | -10/Materials | Discovered new exit (range 14) 950 | -10/Materials | Crushed by falling debris 950 | -10/Materials | Smashed by cave-in Last Messages --------------- 00714_ Sneak attack on A-02 Transporter. 00757_ EXIT=FOUND 00796_ Dropped Hammer. 00796_ Acquired Lgt. Assault Rifle. 00817_ Triggered Alarm Trap. 00817_ An alarm sounds. 00817_ ALERT: Alarm triggered, dispatching investigation squad. 00819_ ALERT: Hostiles spotted, dispatching reinforcements to Terminal M002. 00850_ Dropped Tractor Beam. 00851_ Acquired Seismic Detector. 00856_ U-05 Engineer lays Concrete. 00863_ U-05 Engineer builds a Wall. 00866_ R-06 Scavenger collects Tractor Beam. 00891_ U-05 Engineer builds a Wall. 00950_ The unstable cave ceiling collapses. 00950_ Crushed by falling debris. 00950_ Seismic Detector destroyed. 00950_ System corrupted by crushing effect (+2). Map ----- +----------------------------------------------------+ | ##### ## #######/### """##???????? | | ##### "!"!" ## ##### # """##???????? | | ???##""!"!""## # ##???????? | | ???########### + """##???????? | | ???########### # """##???????? | | ????????????## ##### # """##???????? | | ???????????? # ########### ##???????? | | ???????????? # #### / |############???????? | | ???????????? # #### ||############???????? | | ???????????? + #### ##?????????????????? | | ???????????? ## ##### """ ##?????????????????? | | ???????????? ## ##### """ ##?????????????????? | | ?????????????## ##?## """ #############??????? | | ?????????????## #??## #############??????? | | ?????????????##+#??## ### ##??????? | | ????????????? ?? ###+##### "T" ##??????? | | ??????????????????? # # ##??????? | | ??????????????????? # # ##??????? | | ??????????????????? # ### + ##??????? | | ??????????????????? # ### # ##??????? | | ??????????????????? # ?## # !!! ##??????? | | ???????????????????## ?## # !! ##??????? | | ???????????????????## ?## # !! ##??????? | | ?????????????####### ?## ###########??????? | | ?????????? u ## ###########??????? | | ?????????? ;@ #####????????????? | | ?????????????????### ## ##????????????? | | ??????????????????######## ###???????????? | | ??????????????????##########+#####???????????? | | ???????????????????????### !##???????????? | | ???????????????????????### ##???????????? | | ???????????????????????### """##???????????? | | ????????????????????????## """##???????????? | | ????????????????????????## """##???????????? | | ????????????????????????## ##???????????? | | ????????????????????????##########???????????? | | ????????????????????????##########???????????? | | | | | | | | | | | | | | | | | | | | | | | | | | | +----------------------------------------------------+ Best States ------------- Heat Dissipation 25 Energy Generation 14 Energy Capacity 160 Matter Stores 300 Matter Capacity 300 Sight Range 16 Terrain Scan Density 10 Evasion (%) 55 Item Schematics ----------------- Lrg. Storage Unit | -10/Materials | Hacked Robot Schematics ------------------ None Fabricated ------------ Nothing Alien Tech Used ----------------- None Achievements -------------- None Challenges ------------ None Game ------ Seed LinearVariableNanoactuators Manual? 0 Play Time 00:09:42 Cumulative 68.4 hours Start 2024.05.12 @ 18:05:03 End 2024.05.12 @ 18:15:08 Sessions 1 Manual Loads 0 Difficulty Rogue Special Mode None Game No. 56 Rogue 56 Adventurer 0 Explorer 0 Win Type - Total 0 Types 0/0/0/0/0/0/0/0/0 Lore% 22 Gallery% 39 Achievement% 26 Wizard Run 0 Options --------- Layout 2 ASCII 1 Keyboard 1 Movement Arrows Keybinds 0 Fullscreen 2 Font 20/SmallcapsGlow Map View 50x44 Zoom Use 0% Tactical HUD 1 Map Filters NONE Filters NONE Steam 1 RUN: 63a75113-13a2-4fe1-beeb-f2b809815215